bitfinex/quotes_SOLUSD_20250131
["timestamp","ask_amount","ask_price","bid_price","bid_amount"]
[1738357133127,0.2619,229.78,229.76,18.41690189]
[1738357133331,0.2619,229.78,229.77,0.12549]
[1738357135556,0.2619,229.78,229.77,20.0]
[1738357135763,0.2619,229.78,229.77,20.65271173]
[1738357136066,0.2619,229.78,229.77,20.0]
[1738357136263,0.2619,229.78,229.77,34.06454053]
[1738357140850,0.2619,229.78,229.77,38.41664053]
[1738357141058,0.2619,229.78,229.77,34.06454053]
[1738357141433,0.2619,229.78,229.77,38.41664053]
[1738357142839,0.2619,229.78,229.77,38.54213053]
[1738357144255,0.2619,229.78,229.77,39.54213053]
[1738357147056,0.2619,229.78,229.77,39.66762053]
[1738357147257,0.2619,229.78,229.77,35.19003053]
[1738357147560,0.2619,229.78,229.77,39.54213053]
[1738357148151,0.2619,229.78,229.77,47.54877414]
[1738357148361,0.2619,229.78,229.77,47.67426414]
[1738357148544,0.2619,229.78,229.77,47.73726414]
[1738357148857,0.2619,229.78,229.77,39.60513053]
[1738357149156,0.2619,229.78,229.77,48.86275414]
[1738357149862,0.2619,229.78,229.77,47.73726414]
[1738357150060,0.2619,229.78,229.77,39.73062053]
[1738357150243,0.2619,229.78,229.77,47.73726414]
[1738357150564,0.03,229.85,229.82,0.25098]
[1738357150767,0.03,229.85,229.84,13.53733853]
[1738357150962,0.03,229.85,229.84,13.41184853]
[1738357151460,0.03,229.85,229.84,13.53733853]
[1738357151648,0.03,229.85,229.84,21.54398214]
[1738357152439,0.03,229.85,229.84,21.66947214]
[1738357152640,0.03,229.85,229.84,26.02027214]
[1738357152842,0.03,229.91,229.86,33.53733853]
[1738357153065,0.03,229.91,229.86,34.18969324]
[1738357154680,0.03,229.91,229.86,43.44731685]
[1738357155047,0.03,229.91,229.86,44.44731685]
[1738357155242,0.03,229.91,229.86,42.44731685]
[1738357155442,0.03,229.91,229.86,42.19633685]
[1738357155864,0.03,229.91,229.86,42.44731685]
[1738357157469,0.03,229.91,229.86,42.32182685]
[1738357157654,0.03,229.91,229.86,42.19633685]
[1738357157854,0.03,229.91,229.86,42.32182685]
[1738357158263,0.03,229.91,229.86,42.19633685]
[1738357158572,0.03,229.91,229.86,42.44731685]
[1738357159151,0.03,229.91,229.86,43.44731685]
[1738357159769,0.03,229.91,229.86,42.44731685]
[1738357163056,0.03,229.91,229.86,44.00721685]
[1738357163457,0.03,229.91,229.86,45.00721685]
[1738357163979,0.03,229.99,229.91,0.25098]
[1738357164271,0.03,229.99,229.98,33.41184853]
[1738357165368,0.03,229.99,229.98,33.53733853]
[1738357165569,0.03,229.99,229.98,34.18941848]
[1738357167083,0.03,229.99,229.98,34.06392848]
[1738357167374,0.03,229.99,229.98,33.41184853]
[1738357168672,0.03,229.99,229.98,34.06395479]
[1738357169491,0.03,229.99,229.98,33.41184853]
[1738357170066,0.03,229.99,229.98,34.06394135]
[1738357170469,0.03,229.99,229.98,33.41184853]
[1738357170870,0.03,229.99,229.98,13.41184853]
[1738357171182,0.03,229.99,229.94,0.65221202]
[1738357171391,0.03,229.99,229.92,5.00154065]
[1738357171674,0.03,229.99,229.93,13.53733853]
[1738357171880,0.03,229.99,229.95,13.41184853]
[1738357172095,0.03,229.99,229.96,13.41184853]
[1738357173180,0.03,229.99,229.94,20.0]
[1738357173378,0.03,229.99,229.95,34.06410223]
[1738357173673,0.03,229.99,229.95,14.06410223]
[1738357181279,0.03,229.99,229.96,4.3485]
[1738357181465,0.03,229.99,229.97,0.6521614]
[1738357182481,0.03,229.99,229.98,13.41184853]
[1738357183179,0.03,229.99,229.98,13.66282853]
[1738357184496,0.03,229.99,229.98,18.01102853]
[1738357184682,0.03,229.99,229.98,18.13651853]
[1738357184880,0.03,230.0,229.99,0.25098]
[1738357185083,0.03,230.0,229.99,22.32139514]
[1738357185879,0.03,230.0,229.99,26.92037514]
[1738357186284,0.03,230.0,229.99,26.79488514]
[1738357188079,0.03,230.05,230.03,20.12549]
[1738357188280,0.03,230.05,230.04,14.18926508]
[1738357188872,0.03,230.1,230.04,14.18926508]
[1738357188873,0.03,230.1,230.05,13.78831853]
[1738357189080,0.03,230.1,230.06,23.32122777]
[1738357189679,0.03,230.1,230.06,23.44671777]
[1738357189989,0.03,230.1,230.09,37.88343853]
[1738357190502,0.03,230.1,230.09,38.53516863]
[1738357191170,0.03,230.1,230.09,38.66065863]
[1738357191981,0.03,230.1,230.09,46.66730224]
[1738357192175,0.03,230.1,230.09,46.79279224]
[1738357192996,0.03,230.1,230.09,47.79279224]
[1738357194897,0.03,230.22,230.17,13.41184853]
[1738357195096,0.03,230.22,230.21,20.0]
[1738357195304,0.03,230.22,230.21,33.41184853]
[1738357195603,0.03,230.22,230.21,33.53733853]
[1738357195908,0.03,230.22,230.21,14.06328611]
[1738357196075,0.03,230.22,230.12,4.3454]
[1738357196276,84.1011,230.21,230.13,0.6516732]
[1738357196492,84.1011,230.21,230.18,13.41184853]
[1738357196904,84.1011,230.21,230.1,0.6516341]
[1738357196905,7.02253073,230.2,230.1,0.6516341]
[1738357197482,7.02253073,230.2,230.12,20.0]
[1738357197795,8.02253073,230.2,230.07,0.12549]
[1738357197976,0.12549,230.19,230.08,0.6518325]
[1738357198182,0.12549,230.17,230.09,33.41184853]
[1738357198517,0.70213073,230.16,230.09,33.41184853]
[1738357199074,0.12549,230.15,230.07,0.65183241]
[1738357199390,6.4003,230.12,230.02,0.65187518]
[1738357199579,0.70213073,230.11,230.03,13.53733853]
[1738357199781,6.4003,230.12,230.09,13.41184853]
[1738357199975,6.4003,230.12,230.08,20.0]
[1738357200175,6.4003,230.12,230.07,13.41184853]
[1738357200382,0.70213073,230.11,230.07,13.41184853]
[1738357200806,0.70213073,230.11,230.07,20.0]
[1738357201186,0.70213073,230.11,230.04,0.65193996]
[1738357201380,6.4003,230.12,230.04,0.65193996]
[1738357201587,6.4003,230.12,230.05,20.0]
[1738357201796,6.4003,230.12,230.07,13.41184853]
[1738357202102,6.4003,230.12,230.09,13.41184853]
[1738357202309,6.4003,230.12,230.1,0.65185078]
[1738357202482,6.4003,230.12,230.11,13.41184853]
[1738357202802,6.4003,230.12,230.09,0.65179677]
[1738357202999,6.4003,230.12,230.1,13.41184853]
[1738357203213,1.549,230.14,230.1,13.41184853]
[1738357203398,6.6559,230.18,230.15,20.0]
[1738357203598,6.6559,230.18,230.17,13.41184853]
[1738357204106,6.6559,230.18,230.13,20.77711774]
[1738357204298,6.6559,230.18,230.13,20.0]
[1738357204807,6.6991,230.18,230.14,13.41184853]
[1738357204986,0.0432,230.18,230.16,13.41184853]
[1738357205192,0.0432,230.18,230.15,13.41184853]
[1738357205490,0.0432,230.18,230.15,34.06348336]
[1738357205685,0.0432,230.18,230.17,33.41184853]
[1738357206285,0.0432,230.18,230.17,13.41184853]
[1738357209318,0.0732,230.18,230.17,13.41184853]
[1738357209534,0.0732,230.18,230.15,0.65165143]
[1738357209819,0.0732,230.18,230.17,20.0]
[1738357209992,0.0732,230.18,230.17,33.41184853]
[1738357213818,0.0732,230.18,230.13,24.3452]
[1738357214617,0.0732,230.18,230.17,20.0]
[1738357215695,82.6,230.17,230.05,0.65171614]
[1738357215902,83.30213073,230.16,230.07,0.7148798]
[1738357216120,83.30213073,230.16,230.08,13.41184853]
[1738357217929,82.7572,230.16,230.1,13.41184853]
[1738357218131,82.7572,230.16,230.12,13.41184853]
[1738357218923,81.2572,230.16,230.12,13.41184853]
[1738357219823,81.2572,230.16,230.12,17.75734853]
[1738357220006,0.1572,230.16,230.14,13.41184853]
[1738357220602,0.1572,230.16,230.12,24.9972622]
[1738357220802,0.1572,230.16,230.13,13.41184853]
[1738357221013,0.1572,230.16,230.15,13.41184853]
[1738357221208,0.1872,230.16,230.15,13.41184853]
[1738357222821,81.1,230.21,230.15,13.41184853]
[1738357223027,0.73213073,230.22,230.15,13.41184853]
[1738357223028,80.8172,230.2,230.15,17.75674853]
[1738357223203,80.8172,230.2,230.15,18.40841019]
[1738357224324,0.73213073,230.22,230.21,20.0]
[1738357224325,0.03,230.22,230.21,20.0]
[1738357224505,0.03,230.22,230.21,20.65146197]
[1738357224906,0.03,230.22,230.21,20.0]
[1738357225105,0.03,230.22,230.2,20.0]
[1738357225534,0.03,230.22,230.21,34.06336096]
[1738357225829,0.03,230.22,230.21,33.41184853]
[1738357226037,0.0732,230.22,230.21,33.41184853]
[1738357226200,0.0732,230.22,230.21,34.06336272]
[1738357227006,0.0732,230.22,230.21,47.79748642]
[1738357227315,0.0732,230.22,230.21,52.14128642]
[1738357228633,0.0001,230.22,230.21,52.39226642]
[1738357229123,1.612,230.39,230.32,20.0]
[1738357229338,0.70213073,230.38,230.33,33.41184853]
[1738357229511,0.70213073,230.42,230.33,38.40455155]
[1738357229921,0.12549,230.41,230.33,38.40455155]
[1738357230320,0.70213073,230.4,230.33,33.41184853]
[1738357230828,0.70213073,230.4,230.33,37.75334853]
[1738357231031,0.70213073,230.41,230.33,37.75334853]
[1738357231931,0.70213073,230.41,230.33,51.36198223]
[1738357232119,0.82762073,230.42,230.33,52.01307957]
[1738357232307,0.70213073,230.42,230.33,52.13856957]
[1738357232508,80.8172,230.43,230.33,52.13856957]
[1738357232727,81.51933073,230.43,230.33,52.13856957]
[1738357233126,81.51933073,230.43,230.33,51.48747223]
[1738357233630,80.8172,230.43,230.33,51.48747223]
[1738357233806,80.8172,230.43,230.33,51.61296223]
[1738357234008,0.70213073,230.51,230.33,48.9295237]
[1738357234210,0.70213073,230.51,230.42,20.0]
[1738357234508,0.12549,230.5,230.43,13.41184853]
[1738357234710,0.70213073,230.49,230.43,13.41184853]
[1738357236743,8.65703073,230.52,230.47,13.41184853]
[1738357237725,0.12549,230.51,230.43,20.0]
[1738357238031,0.70213073,230.5,230.43,20.0]
[1738357238328,0.70213073,230.5,230.47,20.0]
[1738357238718,0.12549,230.49,230.37,4.3408]
[1738357238922,0.12549,230.47,230.38,0.65097459]
[1738357239112,0.70213073,230.46,230.39,17.75224853]
[1738357239431,80.8172,230.49,230.39,17.75224853]
[1738357239432,0.70213073,230.48,230.41,13.41184853]
[1738357239819,0.70213073,230.48,230.43,13.41184853]
[1738357240338,0.70213073,230.48,230.41,17.75174853]
[1738357243131,0.70213073,230.48,230.42,20.0]
[1738357244237,0.70213073,230.48,230.43,20.0]
[1738357244744,80.8172,230.56,230.48,13.41184853]
[1738357244929,80.8172,230.56,230.51,13.41184853]
[1738357245320,80.3172,230.56,230.51,13.41184853]
[1738357245731,1.5603,230.58,230.52,13.6086337]
[1738357245951,0.03,230.58,230.53,14.06244815]
[1738357246111,0.03,230.58,230.53,13.41184853]
[1738357247628,0.12549,230.57,230.53,20.0]
[1738357247832,0.12549,230.55,230.44,14.25933242]
[1738357248022,0.70213073,230.54,230.45,4.3392]
[1738357248221,0.70213073,230.54,230.47,33.41184853]
[1738357249017,0.12549,230.57,230.47,33.41184853]
[1738357249219,0.12549,230.55,230.47,33.41184853]
[1738357249417,0.12549,230.53,230.47,20.0]
[1738357249631,0.12549,230.51,230.47,20.0]
[1738357249817,0.70213073,230.55,230.48,13.41184853]
[1738357250233,0.73213073,230.58,230.48,13.41184853]
[1738357251042,0.12549,230.57,230.48,13.41184853]
[1738357251248,0.12549,230.55,230.48,13.41184853]
[1738357251543,0.70213073,230.54,230.48,13.41184853]
[1738357252555,0.12549,230.57,230.48,13.41184853]
[1738357252844,0.12549,230.55,230.48,13.41184853]
[1738357253020,0.70213073,230.54,230.48,13.41184853]
[1738357253723,0.73213073,230.58,230.5,13.41184853]
[1738357254637,0.73213073,230.58,230.49,20.0]
[1738357255223,0.73213073,230.58,230.47,20.65075996]
[1738357255525,0.73213073,230.58,230.44,13.7341237]
[1738357255526,0.73213073,230.58,230.46,4.339]
[1738357256049,1.0,230.57,230.44,17.9479337]
[1738357256262,81.01933073,230.56,230.44,17.9479337]
[1738357257428,81.01933073,230.56,230.48,20.063]
[1738357259228,81.01933073,230.56,230.49,13.41184853]
[1738357261664,80.3172,230.56,230.51,13.41184853]
[1738357262747,0.03,230.58,230.52,0.12549]
[1738357262928,0.73213073,230.58,230.51,4.3381]
[1738357263130,0.03,230.58,230.51,4.3381]
[1738357263441,0.73213073,230.58,230.53,20.0]
[1738357263628,0.03,230.58,230.53,20.0]
[1738357263829,0.73213073,230.58,230.53,20.0]
[1738357264130,0.03,230.58,230.53,20.0]
[1738357264330,0.73213073,230.58,230.53,20.0]
[1738357264636,0.03,230.58,230.53,20.0]
[1738357264836,0.73213073,230.58,230.53,20.0]
[1738357265152,0.03,230.58,230.54,11.91184853]
[1738357265653,0.03,230.58,230.51,20.0]
[1738357266931,0.03,230.58,230.49,4.98901881]
[1738357266932,0.03,230.58,230.48,0.063]
[1738357267133,0.73213073,230.58,230.48,0.063]
[1738357267332,0.73213073,230.58,230.48,33.47484853]
[1738357267834,1.73213073,230.58,230.48,33.47484853]
[1738357268231,2.73213073,230.58,230.48,0.063]
[1738357268460,1.0,230.56,230.48,0.063]
[1738357268751,1.0,230.53,230.48,0.063]
[1738357268955,0.70213073,230.52,230.48,0.063]
[1738357269833,0.70213073,230.53,230.48,0.063]
[1738357270032,1.5007,230.55,230.48,5.05248219]
[1738357270251,0.70213073,230.54,230.48,5.05248219]
[1738357270438,0.70213073,230.54,230.48,4.4017]
[1738357272136,0.70213073,230.54,230.48,0.063]
[1738357275667,1.70213073,230.54,230.48,0.063]
[1738357276468,0.70213073,230.54,230.48,0.063]
[1738357280375,1.0,230.53,230.48,0.063]
[1738357280579,1.0,230.51,230.48,0.063]
[1738357280757,0.70213073,230.5,230.48,0.063]
[1738357281268,89.3375,230.49,230.48,0.063]
[1738357281437,1.0,230.43,230.31,6.83849611]
[1738357281639,0.70213073,230.42,230.31,6.83849611]
[1738357281838,0.70213073,230.42,230.32,13.41184853]
[1738357282443,0.70213073,230.44,230.34,13.41184853]
[1738357282844,1.0,230.43,230.31,11.18039611]
[1738357283051,0.70213073,230.42,230.31,11.18039611]
[1738357283251,0.70213073,230.42,230.29,4.3423]
[1738357283762,0.70213073,230.42,230.3,33.41184853]
[1738357283962,1.0,230.41,230.3,33.41184853]
[1738357284165,6.2173,230.39,230.3,33.41184853]
[1738357284353,0.70213073,230.38,230.3,13.41184853]
[1738357284863,1.77649,230.37,230.29,20.0]
[1738357285064,0.70213073,230.36,230.29,20.0]
[1738357287144,0.70213073,230.36,230.26,0.65136534]
[1738357287467,0.70213073,230.36,230.27,20.0]
[1738357287665,81.3172,230.35,230.27,20.0]
[1738357287964,1.0,230.33,230.24,0.063]
[1738357288176,0.70213073,230.32,230.24,0.063]
[1738357289576,87.6942,230.31,230.24,0.063]
[1738357289760,1.6607,230.28,230.24,0.063]
[1738357289942,0.70213073,230.27,230.24,0.063]
[1738357293573,1.70213073,230.27,230.24,0.063]
[1738357294948,1.12549,230.25,230.24,0.063]
[1738357295151,1.82762073,230.25,230.24,0.063]
[1738357295371,21.82762073,230.25,230.24,0.063]
[1738357295762,1.12549,230.23,230.22,0.063]
[1738357295949,1.0,230.18,230.07,0.063]
[1738357296153,0.70213073,230.17,230.07,0.063]
[1738357296553,0.70213073,230.17,230.08,20.0]
[1738357297165,0.70213073,230.19,230.08,20.0]
[1738357297883,0.70213073,230.19,230.09,13.41184853]
[1738357298048,0.70213073,230.21,230.09,17.75784853]
[1738357298250,0.70213073,230.21,230.13,20.0]
[1738357298584,0.70213073,230.21,230.13,33.6086337]
[1738357298783,0.70213073,230.21,230.14,27.67221666]
[1738357299087,82.6,230.22,230.14,27.67221666]
[1738357299088,84.1175,230.27,230.19,20.0]
[1738357299265,0.12549,230.25,230.19,20.0]
[1738357299581,0.12549,230.23,230.11,15.2471337]
[1738357299760,0.12549,230.21,230.09,4.346]
[1738357299967,0.12549,230.19,230.09,4.346]
[1738357300161,0.12549,230.17,230.13,20.0]
[1738357300361,0.12549,230.17,230.07,0.063]
[1738357300666,0.12549,230.15,230.11,20.0]
[1738357300868,0.12549,230.13,230.11,20.0]
[1738357301075,0.70213073,230.12,230.07,0.063]
[1738357301281,0.12549,230.13,230.07,0.063]
[1738357301477,0.70213073,230.12,230.07,20.063]
[1738357301681,0.70213073,230.16,230.07,20.063]
[1738357301883,0.12549,230.15,230.07,20.063]
[1738357302184,0.12549,230.13,230.07,20.063]
[1738357302384,0.12549,230.11,230.07,20.063]
[1738357303089,0.12549,230.15,230.07,0.063]
[1738357303382,0.12549,230.13,230.07,0.063]
[1738357303582,0.12549,230.11,230.07,0.063]
[1738357305184,0.70213073,230.16,230.07,0.063]
[1738357305664,0.12549,230.15,230.07,0.063]
[1738357305860,0.70213073,230.14,230.07,0.063]
[1738357308284,0.70213073,230.16,230.07,20.063]
[1738357308594,0.12549,230.15,230.07,4.4094]
[1738357308774,0.12549,230.13,230.08,20.0]
[1738357309096,0.70213073,230.12,230.08,20.0]
[1738357309274,0.70213073,230.16,230.08,20.0]
[1738357309986,0.70213073,230.16,230.07,24.4094]
[1738357310374,0.70213073,230.16,230.07,20.063]
[1738357311763,0.70213073,230.16,230.1,20.0]
[1738357311965,0.70213073,230.16,230.1,13.41184853]
[1738357312165,0.70213073,230.17,230.11,0.651834]
[1738357312580,82.6,230.19,230.12,35.19362663]
[1738357312779,82.6,230.19,230.15,20.0]
[1738357312982,0.70213073,230.23,230.16,35.84534795]
[1738357313293,0.70213073,230.24,230.18,21.7817781]
[1738357313888,0.70213073,230.24,230.16,40.18994795]
[1738357314576,0.70213073,230.24,230.18,21.7817781]
[1738357315186,0.70213073,230.24,230.16,17.75644853]
[1738357316490,20.0,230.2,230.15,0.65166191]
[1738357316690,0.12549,230.14,230.07,0.063]
[1738357316892,20.0,230.1,230.07,0.063]
[1738357317184,0.70213073,230.09,230.07,0.063]
[1738357317394,2.44246773,230.09,230.07,0.063]
[1738357317577,5.0729801,230.08,230.07,0.063]
[1738357319073,6.6403801,230.08,230.07,0.063]
[1738357320292,1.69289,230.08,230.07,0.063]
[1738357321092,0.12549,230.08,230.07,0.063]
[1738357322994,1.25098,230.08,230.07,0.063]
[1738357323189,2.25098,230.08,230.07,0.063]
[1738357323396,20.733755,230.08,230.07,0.063]
[1738357323579,0.25098,230.03,230.0,0.063]
[1738357323893,0.25098,230.01,230.0,0.063]
[1738357327489,1.25098,230.01,230.0,0.063]
[1738357329601,14.66282853,230.01,230.0,0.063]
[1738357329787,19.82813573,230.01,230.0,0.063]
[1738357330189,14.53733853,230.0,229.99,0.063]
[1738357330396,1.82762073,230.0,229.99,0.063]
[1738357330979,6.99292793,230.0,229.99,0.063]
[1738357331284,20.40477646,230.0,229.99,0.063]
[1738357332125,6.99292793,230.0,229.99,0.063]
[1738357332308,9.15292793,230.0,229.99,0.063]
[1738357334301,29.27841793,230.0,229.99,0.063]
[1738357334686,30.27841793,230.0,229.99,0.063]
[1738357336709,27.11841793,230.0,229.99,0.063]
[1738357337605,5.99292793,230.0,229.99,0.063]
[1738357337811,0.82762073,230.0,229.99,0.063]
[1738357338112,0.70213073,230.05,229.99,0.063]
[1738357338501,83.30213073,230.07,229.99,0.71513298]
[1738357338813,83.30213073,230.07,230.0,13.41184853]
[1738357339627,82.6,230.07,230.02,13.41184853]
[1738357339809,82.6,230.07,229.99,0.063]
[1738357340003,0.70213073,230.06,229.99,0.063]
[1738357341111,0.03,230.0,229.99,0.063]
[1738357341490,0.03,230.0,229.99,13.47484853]
[1738357341710,0.03,230.0,229.99,19.97714853]
[1738357341907,0.03,230.0,229.99,20.10263853]
[1738357342592,0.03,230.0,229.99,19.97714853]
[1738357344818,0.03,230.0,229.99,20.10263853]
[1738357345588,0.03,230.0,229.99,20.7546418]
[1738357346611,0.03,230.0,229.99,23.56031458]
[1738357347008,0.03,230.0,229.99,23.68580458]
[1738357347195,0.03,230.0,229.99,22.3305418]
[1738357347396,0.03,230.0,229.99,22.2050518]
[1738357347595,82.6,230.1,230.03,13.53733853]
[1738357347802,82.6,230.1,230.07,13.41184853]
[1738357348000,82.6,230.1,230.07,14.0637395]
[1738357349695,82.6,230.1,230.07,13.41184853]
[1738357350211,82.6,230.1,230.06,20.0]
[1738357350529,82.6,230.1,230.02,0.65191295]
[1738357350818,82.6,230.1,230.03,13.41184853]
[1738357351018,82.6,230.1,230.05,13.41184853]
[1738357351614,82.6,230.1,230.06,0.65195022]
[1738357351792,82.6,230.1,230.07,13.41184853]
[1738357352811,82.6,230.1,230.04,13.41184853]
[1738357353009,82.6,230.1,230.05,0.65189127]
[1738357353412,82.63,230.1,230.07,13.41184853]
[1738357353620,0.03,230.1,230.07,14.06373987]
[1738357354919,0.03,230.1,230.07,18.41013987]
[1738357355119,0.03,230.1,230.09,13.41184853]
[1738357355322,0.03,230.1,230.09,14.18909174]
[1738357356422,0.03,230.1,230.09,14.31458174]
[1738357358222,0.03,230.1,230.09,14.18909174]
[1738357358834,82.6,230.21,230.17,1.0]
[1738357359003,82.6,230.21,230.15,1.0]
[1738357359325,82.6,230.21,230.2,1.0]
[1738357359724,82.6,230.26,230.2,1.0]
[1738357359905,82.6,230.25,230.21,1.0]
[1738357360104,82.6,230.3,230.23,1.0]
[1738357360326,82.6,230.29,230.19,1.0]
[1738357360520,82.72549,230.28,230.17,1.0]
[1738357360730,82.72549,230.28,230.15,1.0]
[1738357360926,82.6,230.28,230.21,1.0]
[1738357361321,82.6,230.28,230.2,1.0]
[1738357361523,82.6,230.28,230.18,1.0]
[1738357361835,13.30671376,230.27,230.17,1.0]
[1738357363138,13.30671376,230.27,230.12,14.41184853]
[1738357363139,82.6,230.26,230.15,1.0]
[1738357363525,5.57962376,230.25,230.13,1.0]
[1738357363731,82.6,230.24,230.13,1.0]
[1738357363916,20.0,230.21,230.11,1.0]
[1738357364116,82.6,230.24,230.11,1.0]
[1738357364117,20.0,230.2,230.11,1.0]
[1738357364335,88.17962376,230.19,230.11,1.0]
[1738357364722,88.17962376,230.19,230.09,1.0]
[1738357364936,82.6,230.18,230.09,1.0]
[1738357365520,82.6,230.17,230.09,1.0]
[1738357365721,82.6,230.16,230.09,1.0]
[1738357366013,82.6,230.16,230.11,1.0]
[1738357366750,82.6,230.16,230.1,1.0]
[1738357367119,82.6,230.16,230.11,1.0]
[1738357368428,82.6,230.16,230.13,1.0]
[1738357370926,82.6,230.16,230.11,1.0]
[1738357371618,82.6,230.16,230.12,1.0]
[1738357373129,82.6,230.16,230.14,2.0]
[1738357374747,82.6,230.16,230.12,1.0]
[1738357375250,82.6,230.16,230.14,1.0]
[1738357376550,82.6,230.16,230.12,1.0]
[1738357376957,82.6,230.16,230.12,2.0]
[1738357377249,82.6,230.16,230.12,1.0]
[1738357377629,82.6,230.16,230.15,1.0]
[1738357377936,82.6,230.16,230.13,1.0]
[1738357378144,82.6,230.16,230.15,1.0]
[1738357379332,82.6,230.23,230.2,1.0]
[1738357379533,82.6,230.23,230.18,1.0]
[1738357379735,82.6,230.23,230.16,1.0]
[1738357380049,82.6,230.23,230.16,2.0]
[1738357380750,82.6,230.23,230.16,1.0]
[1738357381247,82.6,230.23,230.18,1.0]
[1738357381748,82.6,230.22,230.14,1.0]
[1738357381924,82.6,230.21,230.14,1.0]
[1738357382429,82.6,230.21,230.15,1.0]
[1738357382629,82.6,230.21,230.16,1.0]
[1738357384947,82.6,230.2,230.14,1.0]
[1738357385148,82.6,230.2,230.16,1.0]
[1738357386051,88.17962376,230.2,230.12,2.0]
[1738357386859,82.6,230.19,230.12,1.0]
[1738357387063,82.6,230.19,230.11,1.063]
[1738357387429,20.0,230.15,230.11,0.063]
[1738357387632,87.25866354,230.14,230.11,0.063]
[1738357387833,82.6,230.13,230.11,0.063]
[1738357388254,5.57962376,230.12,230.11,0.063]
[1738357388434,6.68408594,230.12,230.11,0.063]
[1738357388836,6.85678375,230.12,230.11,0.063]
[1738357390161,6.98227375,230.12,230.11,0.063]
[1738357390355,7.10776375,230.12,230.11,0.063]
[1738357390565,6.00330157,230.12,230.11,0.063]
[1738357390747,19.4151501,230.12,230.11,0.063]
[1738357390947,20.47663921,230.12,230.11,0.063]
[1738357391540,0.12549,230.04,230.0,0.063]
[1738357392167,20.12549,230.01,230.0,0.063]
[1738357392547,25.70511376,230.01,230.0,0.063]
[1738357394964,0.12549,230.01,230.0,0.063]
[1738357396873,5.57962376,230.07,230.01,1.0]
[1738357397555,0.12549,230.06,230.01,1.0]
[1738357398179,0.12549,230.06,230.01,2.0]
[1738357398465,5.57962376,230.13,230.03,1.0]
[1738357398849,0.12549,230.09,230.03,1.0]
[1738357399085,0.12549,230.09,230.03,2.0]
[1738357399246,0.12549,230.09,230.06,1.0]
[1738357399450,20.0,230.1,230.03,1.0]
[1738357399451,0.12549,230.06,230.03,1.0]
[1738357399680,0.12549,230.06,230.02,1.0]
[1738357400062,0.12549,230.06,230.03,1.0]
[1738357400263,0.12549,230.06,230.02,1.0]
[1738357400754,0.12549,230.06,230.03,1.0]
[1738357401360,0.12549,230.06,230.04,1.0]
[1738357401857,82.6,230.07,230.06,1.0]
[1738357402980,0.15549,230.11,230.08,1.0]
[1738357403881,0.15549,230.11,230.07,1.0]
[1738357404052,0.15549,230.11,230.06,1.0]
[1738357404372,0.15549,230.11,230.04,1.0]
[1738357404563,20.12549,230.09,230.02,1.0]
[1738357404770,82.6,230.08,230.04,1.0]
[1738357407773,0.12549,230.07,230.02,1.0]
[1738357407959,0.12549,230.05,230.0,1.6365]
[1738357408273,5.70511376,230.05,230.0,0.063]
[1738357408660,5.70511376,230.05,230.0,1.063]
[1738357410260,5.70511376,230.05,230.0,0.063]
[1738357410673,5.70511376,230.05,230.0,1.063]
[1738357411672,0.12549,230.05,230.02,1.0]
[1738357416081,0.12549,230.05,230.02,0.39092992]
[1738357416277,82.6,230.06,230.05,0.39092992]
[1738357416779,82.72549,230.06,230.05,1.89202992]
[1738357417155,82.6,230.1,230.08,0.39092992]